fUST/lending_fUST_20240708
["ID","MTS","AMOUNT","RATE_DAILY","PERIOD"]
[331471466,1720431043032,-1412.73,0.00057534,120]
[331471467,1720431043041,-1412.73,0.00057534,120]
[331471468,1720431043051,-1595.55,0.00057534,120]
[331471469,1720431043061,-1412.73,0.00057534,120]
[331471470,1720431043071,-1412.73,0.00057534,120]
[331471471,1720431043080,-1412.73,0.00057534,120]
[331471472,1720431043090,-1412.73,0.00057534,120]
[331471473,1720431043100,-1412.73,0.00057534,120]
[331471474,1720431043110,-1412.73,0.00057534,120]
[331471475,1720431043120,-1412.73,0.00057534,120]
[331471476,1720431043129,-1412.73,0.00057534,120]
[331471477,1720431043139,-1412.87455019,0.00057534,120]
[331471478,1720431043148,-500.0,0.00057534,120]
[331471479,1720431043156,-568.93,0.00057534,120]
[331471480,1720431043165,-1148.8,0.00057534,120]
[331471481,1720431043174,-500.0,0.00057534,120]
[331471482,1720431043184,-500.0,0.00057534,120]
[331471483,1720431043193,-731.135599,0.00057534,120]
[331471484,1720431043202,-500.0,0.00057534,120]
[331471485,1720431043211,-731.135599,0.00057534,120]
[331471486,1720431043220,-3248.43,0.00057534,120]
[331471487,1720431043229,-3248.43,0.00057534,120]
[331471488,1720431043239,-3248.43,0.00057534,120]
[331471489,1720431043248,-1037.47646335,0.00057534,120]
[331471491,1720431043488,-2210.95353665,0.00057534,120]
[331471492,1720431043498,-3248.43,0.00057534,120]
[331471493,1720431043507,-3248.43,0.00057534,120]
[331471494,1720431043516,-3248.43,0.00057534,120]
[331471495,1720431043526,-3248.43,0.00057534,120]
[331471496,1720431043535,-3248.43,0.00057534,120]
[331471497,1720431043544,-3248.43,0.00057534,120]
[331471498,1720431043553,-3248.43,0.00057534,120]
[331471499,1720431043563,-3248.43,0.00057534,120]
[331471500,1720431043572,-1264.82,0.00057534,120]
[331471501,1720431043581,-3248.43,0.00057534,120]
[331471502,1720431043590,-4166.68,0.00057534,120]
[331471503,1720431043599,-3248.43,0.00057534,120]
[331471504,1720431043609,-3248.43,0.00057534,120]
[331471505,1720431043618,-3248.43,0.00057534,120]
[331471506,1720431043627,-3248.43,0.00057534,120]
[331471507,1720431043636,-3248.43,0.00057534,120]
[331471508,1720431043646,-3248.43,0.00057534,120]
[331471509,1720431043655,-3248.43,0.00057534,120]
[331471510,1720431043664,-3248.43,0.00057534,120]
[331471511,1720431043674,-3248.43,0.00057534,120]
[331471512,1720431043682,-3248.43,0.00057534,120]
[331471513,1720431043692,-947.2283623,0.00057534,120]
[331471530,1720431043959,-547.7176527,0.00029892,2]
[331471532,1720431043969,-152.18454839,0.00029892,2]
[331471534,1720431043978,-500.0,0.00029892,2]
[331471536,1720431043990,-647.59268048,0.00029892,2]
[331471539,1720431044003,-212.53814868,0.00029892,2]
[331471541,1720431044012,-204.02641026,0.00029892,2]
[331471542,1720431044021,-500.0,0.00029892,2]
[331471544,1720431044031,-119.94055949,0.00029892,2]
[331471766,1720431373399,97473.72607553,0.00038764,120]
[331471780,1720431571181,164.35746,0.00021096,2]
[331471783,1720431619100,261.34483971,0.00021096,2]
[331471785,1720431770717,191.07976262,0.00024481,2]
[331471789,1720431970231,314.25415067,0.00024481,2]
[331471796,1720432137066,421.4203352,0.00024481,2]
[331471800,1720432151190,-35998.67735,0.00025501,2]
[331471801,1720432151227,-528.75882612,0.00026007,2]
[331471802,1720432151258,-200.0,0.00026107,15]
[331471803,1720432151285,-157.691418,0.00026235,2]
[331471804,1720432151315,-167.6285255,0.00026808,2]
[331471805,1720432151341,-250.0,0.00027302,2]
[331471806,1720432151370,-3113.29512773,0.0002826,2]
[331471807,1720432158215,278.4044108,0.00024481,2]
[331471808,1720432159294,225.53942994,0.00024481,2]
[331471809,1720432169111,-256.72904767,0.00027999,2]
[331471810,1720432169134,-5475.18724595,0.0002826,2]
[331471899,1720432238716,-16311.51762632,0.0002826,2]
[331471901,1720432238727,-245.20046817,0.00029673,2]
[331471903,1720432238737,-35998.67735,0.00029673,2]
[331471906,1720432238747,-10563.33124298,0.00029879,2]
[331471908,1720432238756,-10000.0011,0.00029903,2]
[331471910,1720432238766,-397.0,0.0003,2]
[331471912,1720432238776,-284.48602988,0.0003,3]
[331471914,1720432238786,-13982.57116061,0.00030103,2]
[331471916,1720432238795,-166.16071,0.00030315,2]
[331471917,1720432238805,-1000.0,0.00031,31]
[331471918,1720432238815,-624.86542754,0.00032772,2]
[331471919,1720432238825,-500.20504173,0.00033,30]
[331471920,1720432238835,-279.0634975,0.00033742,2]
[331471921,1720432238845,-1000.0,0.00034,34]
[331471922,1720432238855,-48366.745,0.00034254,2]
[331471923,1720432238865,-620.24327138,0.0003441,2]
[331471925,1720432238875,-4309.26888189,0.00034458,4]
[331471926,1720432238885,-3904.44726235,0.00034469,4]
[331471927,1720432238895,-3904.44726235,0.00034479,4]
[331471928,1720432238905,-3904.44726235,0.00034499,4]
[331471929,1720432238915,-181.16512633,0.00034669,4]
[331471930,1720432238925,-232.12496716,0.00034672,2]
[331471931,1720432238935,-501.7050625,0.00034895,2]
[331471932,1720432238945,-208.32596228,0.00034899,7]
[331471933,1720432238955,-500.0,0.00034899,7]
[331471934,1720432238964,-397.52820048,0.00034899,7]
[331471935,1720432238974,-500.0,0.00034899,7]
[331471936,1720432238984,-216.18038745,0.00034899,7]
[331471937,1720432238993,-500.0,0.00034899,7]
[331471938,1720432239003,-500.0,0.00034899,7]
[331471939,1720432239013,-371.0455335,0.00034899,7]
[331471940,1720432239023,-500.0,0.00034899,7]
[331471941,1720432239033,-204.47465592,0.00034899,7]
[331471942,1720432239043,-500.0,0.00034899,7]
[331471943,1720432239053,-500.0,0.00034899,7]
[331471944,1720432239063,-500.0,0.00034899,7]
[331471945,1720432239073,-468.64868626,0.00034899,7]
[331471946,1720432239083,-27383.49634254,0.000349,2]
[331471947,1720432239093,-3904.44726235,0.0003499,4]
[331471948,1720432239104,-1092.21683455,0.00034999,21]
[331471949,1720432239115,-1662.013679,0.00035,4]
[331471950,1720432239127,-8441.11942699,0.00035,2]
[331471951,1720432239138,-742.75440298,0.00035,30]
[331471952,1720432239149,-155.40087376,0.00036232,4]
[331471953,1720432239159,-526.17907697,0.00036664,2]
[331471955,1720432239170,-188.0,0.00038764,30]
[331471957,1720432239180,-188.0,0.00038764,30]
[331471959,1720432239191,-178.61,0.00038764,30]
[331471961,1720432239202,-1000.0,0.00039,39]
[331471963,1720432239213,-250.53109566,0.000392,10]
[331471965,1720432239223,-501.70506247,0.0004053,2]
[331471966,1720432239236,-352.20787156,0.00041095,4]
[331471967,1720432239247,-526.17907697,0.00041664,2]
[331471968,1720432239258,-279.0634975,0.00041821,2]
[331471969,1720432239269,-9779.10702914,0.00041999,20]
[331471970,1720432239279,-1199.88,0.00042,4]
[331471971,1720432239291,-1730.39338617,0.00042229,2]
[331471972,1720432239301,-212.14608773,0.00042442,30]
[331471973,1720432239311,-272.49450803,0.00042629,4]
[331471974,1720432239322,-212.14608773,0.00042913,30]
[331471975,1720432239342,-254.04303549,0.00043,120]
[331471976,1720432239355,-860.36111177,0.00044,90]
[331471977,1720432239366,-212.14608773,0.00044149,30]
[331471978,1720432239376,-212.14608773,0.00044809,30]
[331471979,1720432239388,-1000.0,0.00045,45]
[331471980,1720432239398,-212.14608773,0.00045612,30]
[331471981,1720432239408,-618.99346542,0.000458,30]
[331471982,1720432239418,-501.70506247,0.00046165,2]
[331471983,1720432239428,-500.0,0.00046575,120]
[331471984,1720432239438,-500.0,0.00046575,120]
[331471985,1720432239448,-500.0,0.00046575,120]
[331471986,1720432239458,-500.0,0.00046575,120]
[331471987,1720432239468,-273.30532827,0.00046575,120]
[331471988,1720432239478,-500.0,0.00046575,120]
[331471989,1720432239488,-500.0,0.00046575,120]
[331471990,1720432239498,-500.0,0.00046575,120]
[331471991,1720432239507,-500.0,0.00046575,120]
[331471992,1720432239517,-500.0,0.00046575,120]
[331471993,1720432239527,-500.0,0.00046575,120]
[331471994,1720432239536,-500.0,0.00046575,120]
[331471995,1720432239547,-500.0,0.00046575,120]
[331471996,1720432239556,-500.0,0.00046575,120]
[331471997,1720432239567,-500.0,0.00046575,120]
[331471998,1720432239578,-212.14608773,0.00047347,30]
[331471999,1720432239588,-212.14608773,0.00047666,30]
[331472000,1720432239599,-157.59667049,0.00048412,30]
[331472001,1720432239609,-1873.81024533,0.000488,120]
[331472002,1720432239619,-1000.0,0.00049,120]
[331472003,1720432239629,-157.59667049,0.00049282,30]
[331472004,1720432239639,-279.0634975,0.000499,2]
[331472005,1720432239648,-190.95,0.0004997,62]
[331472006,1720432239659,-3904.44726235,0.0004999,6]
[331472007,1720432239670,-154.62117811,0.0005,30]
[331472008,1720432239680,-5552.88867932,0.0005,7]
[331472009,1720432239691,-50000.0,0.0005,15]
[331472010,1720432239700,-158.19643739,0.0005,120]
[331472011,1720432239711,-533.81299865,0.0005,30]
[331472012,1720432239721,-212.14608773,0.00050122,60]
[331472013,1720432239731,-212.14608773,0.00050653,60]
[331472014,1720432239741,-2523.76173422,0.00051,14]
[331472015,1720432239752,-212.14608773,0.00051447,60]
[331472016,1720432239762,-10011.52,0.000517,30]
[331472017,1720432239773,-501.70506247,0.00051799,2]
[331472018,1720432239783,-5169.43023937,0.00051925,120]
[331472019,1720432239793,-1000.0,0.00052,120]
[331472020,1720432239803,-999.0,0.00052054,120]
[331472021,1720432239813,-500.0,0.00052055,120]
[331472022,1720432239823,-500.0,0.00052055,120]
[331472023,1720432239834,-500.0,0.00052055,120]
[331472024,1720432239845,-493.862443,0.00052055,120]
[331472025,1720432239855,-5169.43023937,0.00052083,120]
[331472026,1720432239865,-999.0,0.00052465,120]
[331472027,1720432239975,-5169.43023937,0.00052574,120]
[331472028,1720432239985,-600.0,0.000528,2]
[331472029,1720432239995,-3904.44726235,0.00052827,6]
[331472030,1720432240006,-5169.43023937,0.00052857,120]
[331472031,1720432240015,-999.0,0.00052876,120]
[331472032,1720432240025,-401.28065198,0.00053,120]
[331472033,1720432240035,-5169.43023937,0.00053124,120]
[331472034,1720432240045,-212.14608773,0.00053236,60]
[331472036,1720432240054,-999.0,0.00053287,120]
[331472037,1720432240064,-197.65516536,0.000533,120]
[331472038,1720432240075,-600.0,0.0005335,2]
[331472039,1720432240085,-5169.43023937,0.00053372,120]
[331472040,1720432240095,-5169.43023937,0.00053492,120]
[331472041,1720432240105,-212.14608773,0.00053604,60]
[331472042,1720432240115,-212.14608773,0.00053651,60]
[331472043,1720432240125,-999.0,0.00053698,120]
[331472044,1720432240135,-5169.43023937,0.00053876,120]
[331472045,1720432240145,-815.20078301,0.000539,2]
[331472046,1720432240155,-999.0,0.00054109,120]
[331472047,1720432240165,-5169.43023937,0.00054205,120]
[331472048,1720432240175,-212.14608773,0.00054206,60]
[331472049,1720432240184,-5169.43023937,0.00054293,120]
[331472050,1720432240194,-212.14608773,0.00054433,60]
[331472051,1720432240203,-999.0,0.0005452,120]
[331472052,1720432240212,-212.14608773,0.00054655,60]
[331472053,1720432240222,-5169.43023937,0.00054695,120]
[331472054,1720432240237,-505.50985577,0.00054795,120]
[331472055,1720432240247,-500.0,0.00054795,120]
[331472056,1720432240258,-500.0,0.00054795,120]
[331472057,1720432240268,-500.0,0.00054795,120]
[331472058,1720432240279,-500.0,0.00054795,120]
[331472059,1720432240288,-500.0,0.00054795,120]
[331472060,1720432240298,-500.0,0.00054795,120]
[331472061,1720432240307,-500.0,0.00054795,120]
[331472062,1720432240317,-500.0,0.00054795,120]
[331472063,1720432240327,-500.0,0.00054795,120]
[331472064,1720432240342,-500.0,0.00054795,120]
[331472065,1720432240352,-500.0,0.00054795,120]
[331472066,1720432240361,-500.0,0.00054795,120]
[331472067,1720432240371,-500.0,0.00054795,120]
[331472068,1720432240382,-500.0,0.00054795,120]
[331472069,1720432240391,-500.0,0.00054795,120]
[331472070,1720432240402,-500.0,0.00054795,120]
[331472071,1720432240411,-500.0,0.00054795,120]
[331472072,1720432240422,-500.0,0.00054795,120]
[331472073,1720432240432,-587.09457853,0.00054795,120]
[331472074,1720432240442,-500.0,0.00054795,120]
[331472075,1720432240452,-500.0,0.00054795,120]
[331472076,1720432240461,-500.0,0.00054795,120]
[331472077,1720432240471,-500.0,0.00054795,120]
[331472078,1720432240480,-500.0,0.00054795,120]
[331472079,1720432240489,-500.0,0.00054795,120]
[331472080,1720432240499,-500.0,0.00054795,120]
[331472081,1720432240509,-212.14608773,0.00054799,60]
[331472082,1720432240518,-212.14608773,0.00054839,60]
[331472083,1720432240527,-3904.44726235,0.00054852,6]
[331472084,1720432240537,-999.0,0.00054931,120]
[331472085,1720432240546,-5169.43023937,0.00054999,120]
[331472086,1720432240555,-7000.1,0.00055,30]
[331472087,1720432240564,-1839.0,0.00055,30]
[331472088,1720432240574,-5169.43023937,0.00055079,120]
[331472089,1720432240584,-999.0,0.00055342,120]
[331472090,1720432240593,-7808.8945247,0.00055546,6]
[331472091,1720432240602,-769.5080853,0.00055555,120]
[331472092,1720432240612,-89722.45139737,0.00055556,14]
[331472093,1720432240621,-212.14608773,0.00055592,120]
[331472094,1720432240631,-4739.33904041,0.00055593,61]
[331472095,1720432240640,-5169.43023937,0.00055593,120]
[331472096,1720432240649,-999.0,0.00055753,120]
[331472097,1720432240658,-5169.43023937,0.0005584,120]
[331472098,1720432240668,-212.14608773,0.00056003,120]
[331472099,1720432240678,-5169.43023937,0.00056028,120]
[331472100,1720432240688,-999.0,0.00056164,120]
[331472101,1720432240697,-5169.43023937,0.00056267,120]
[331472102,1720432240707,-3904.44726235,0.00056336,6]
[331472103,1720432240717,-5169.43023937,0.00056455,120]
[331472104,1720432240726,-999.0,0.00056575,120]
[331472105,1720432240735,-5169.43023937,0.00056983,120]
[331472106,1720432240744,-999.0,0.00056986,120]
[331472107,1720432240754,-606.92202189,0.00057,120]
[331472108,1720432240763,-3000.0,0.00057,120]
[331472109,1720432240772,-5169.43023937,0.00057035,120]
[331472110,1720432240781,-3904.44726235,0.0005739,7]
[331472111,1720432240790,-999.0,0.00057397,120]
[331472112,1720432240799,-33156.5673558,0.000574,2]
[331472113,1720432240808,-501.70506247,0.00057434,2]
[331472114,1720432240817,-3904.44726235,0.0005752,7]
[331472115,1720432240826,-11713.341787,0.00057524,7]
[331472116,1720432240835,-5169.43023937,0.00057526,120]
[331472117,1720432240845,-13944.71309001,0.0005753,120]
[331472118,1720432240885,-4614.68,0.0005753,120]
[331472139,1720432242362,-154.57491897,0.00037587,4]
[331472140,1720432242371,-183.53241814,0.0003988,120]
[331472141,1720432242382,-2837.52518846,0.0005753,120]
[331472142,1720432242391,-500.0,0.00057534,120]
[331472143,1720432242401,-500.0,0.00057534,120]
[331472144,1720432242410,-500.0,0.00057534,120]
[331472145,1720432242422,-500.0,0.00057534,120]
[331472146,1720432242431,-500.0,0.00057534,120]
[331472147,1720432242440,-500.0,0.00057534,120]
[331472148,1720432242449,-500.0,0.00057534,120]
[331472149,1720432242458,-245.10647386,0.00057534,120]
[331472150,1720432242467,-500.0,0.00057534,120]
[331472151,1720432242476,-500.0,0.00057534,120]
[331472152,1720432242485,-500.0,0.00057534,120]
[331472154,1720432242494,-500.0,0.00057534,120]
[331472155,1720432242504,-500.0,0.00057534,120]
[331472156,1720432242513,-500.0,0.00057534,120]
[331472157,1720432242522,-500.0,0.00057534,120]
[331472158,1720432242531,-500.0,0.00057534,120]
[331472159,1720432242540,-500.0,0.00057534,120]
[331472160,1720432242548,-500.0,0.00057534,120]
[331472161,1720432242558,-500.0,0.00057534,120]
[331472162,1720432242567,-500.0,0.00057534,120]
[331472163,1720432242575,-503.089928,0.00057534,120]
[331472164,1720432242584,-500.0,0.00057534,120]
[331472165,1720432242593,-464.80818358,0.00057534,120]
[331472166,1720432242604,-500.0,0.00057534,120]
[331472167,1720432242614,-500.0,0.00057534,120]
[331472168,1720432242623,-500.0,0.00057534,7]
[331472169,1720432242632,-500.0,0.00057534,120]
[331472170,1720432242642,-500.0,0.00057534,120]
[331472171,1720432242651,-500.0,0.00057534,120]
[331472172,1720432242659,-500.0,0.00057534,120]
[331472173,1720432242669,-500.0,0.00057534,120]
[331472174,1720432242678,-500.0,0.00057534,2]
[331472175,1720432242687,-2000.0,0.00057534,120]
[331472176,1720432242695,-500.0,0.00057534,120]
[331472177,1720432242705,-500.0,0.00057534,120]
[331472178,1720432242714,-500.0,0.00057534,120]
[331472179,1720432242723,-500.0,0.00057534,120]
[331472180,1720432242731,-500.0,0.00057534,120]
[331472181,1720432242740,-500.0,0.00057534,120]
[331472182,1720432242750,-500.0,0.00057534,120]
[331472183,1720432242759,-500.0,0.00057534,120]
[331472184,1720432242768,-500.0,0.00057534,120]
[331472185,1720432242778,-500.0,0.00057534,120]
[331472186,1720432242787,-500.0,0.00057534,10]
[331472187,1720432242854,-500.0,0.00057534,120]
[331472188,1720432242874,-500.0,0.00057534,120]
[331472189,1720432242883,-960.16,0.00057534,120]
[331472190,1720432242892,-500.0,0.00057534,120]
[331472191,1720432242902,-500.0,0.00057534,120]
[331472192,1720432242911,-500.0,0.00057534,120]
[331472193,1720432242920,-568.93,0.00057534,120]
[331472194,1720432242929,-504.33,0.00057534,120]
[331472195,1720432242939,-500.0,0.00057534,120]
[331472196,1720432242948,-500.0,0.00057534,120]
[331472197,1720432242957,-1030.58,0.00057534,120]
[331472198,1720432242967,-1337.13,0.00057534,120]
[331472199,1720432242976,-500.0,0.00057534,120]
[331472200,1720432242985,-1000.0,0.00057534,120]
[331472201,1720432242994,-888.07,0.00057534,120]
[331472202,1720432243003,-590.87,0.00057534,120]
[331472203,1720432243012,-500.0,0.00057534,120]
[331472204,1720432243021,-1062.4,0.00057534,120]
[331472205,1720432243031,-500.0,0.00057534,120]
[331472206,1720432243040,-558.35,0.00057534,120]
[331472207,1720432243049,-500.0,0.00057534,120]
[331472208,1720432243057,-500.0,0.00057534,120]
[331472210,1720432243066,-500.0,0.00057534,120]
[331472211,1720432243075,-500.0,0.00057534,120]
[331472212,1720432243085,-2082.46,0.00057534,40]
[331472213,1720432243094,-500.0,0.00057534,120]
[331472214,1720432243104,-500.0,0.00057534,120]
[331472215,1720432243113,-1304.09,0.00057534,120]
[331472216,1720432243123,-500.0,0.00057534,120]
[331472217,1720432243132,-500.0,0.00057534,120]
[331472218,1720432243142,-500.0,0.00057534,120]
[331472219,1720432243151,-513.5312704,0.00057534,120]
[331472220,1720432243161,-500.0,0.00057534,120]
[331472221,1720432243170,-500.0,0.00057534,120]
[331472222,1720432243180,-500.0,0.00057534,120]
[331472223,1720432243190,-500.0,0.00057534,120]
[331472224,1720432243199,-500.0,0.00057534,120]
[331472225,1720432243208,-255.26140429,0.00057534,120]
[331472226,1720432243217,-500.0,0.00057534,120]
[331472227,1720432243226,-311.9485766,0.00057534,120]
[331472232,1720432244027,-807.2814234,0.00057534,120]
[331472233,1720432244037,-500.0,0.00057534,120]
[331472234,1720432244046,-500.0,0.00057534,120]
[331472235,1720432244055,-500.0,0.00057534,120]
[331472236,1720432244064,-500.0,0.00057534,120]
[331472238,1720432244074,-500.0,0.00057534,120]
[331472239,1720432244083,-500.0,0.00057534,120]
[331472240,1720432244092,-500.0,0.00057534,120]
[331472241,1720432244102,-500.0,0.00057534,120]
[331472242,1720432244111,-889.99,0.00057534,120]
[331472243,1720432244120,-500.0,0.00057534,120]
[331472244,1720432244130,-500.0,0.00057534,120]
[331472245,1720432244139,-169.44,0.00057534,120]
[331472246,1720432244148,-500.0,0.00057534,120]
[331472247,1720432244157,-1236.24,0.00057534,120]
[331472248,1720432244167,-500.0,0.00057534,120]
[331472249,1720432244176,-321.8859516,0.00057534,120]
[331472268,1720432247410,-155.40087376,0.00036232,4]
[331472269,1720432247421,-2879.54544911,0.000528,120]
[331472270,1720432247431,-4501.75547339,0.000528,120]
[331472271,1720432247440,-37267.45391012,0.00057524,3]
[331472287,1720432271212,164.940385,0.00021096,2]
[331472290,1720432477857,3139.47718346,0.0002448,2]
[331472293,1720432486481,435.0,0.00024481,2]
[331472294,1720432486889,1202.09800209,0.0002448,4]
[331472295,1720432486924,3080.39263332,0.0002448,2]
[331472296,1720432507606,160.94297725,0.00024481,2]
[331472297,1720432521030,176.51217966,0.00024481,2]
[331472298,1720432530702,523.84731011,0.0002448,2]
[331472299,1720432532642,526.06091387,0.0002448,2]
[331472300,1720432535885,264.97857403,0.00024481,2]
[331472301,1720432541687,156.56418552,0.00024481,2]
[331472303,1720432546359,155.06564544,0.00024481,2]
[331472304,1720432553548,209.44492491,0.00024481,2]
[331472305,1720432557538,155.58300829,0.00024481,2]
[331472306,1720432559575,261.33237172,0.00024481,2]
[331472307,1720432561008,155.42805707,0.00024481,2]
[331472309,1720432627437,198.4253475,0.00024481,2]
[331472310,1720432649247,375.49562509,0.00024481,2]
[331472311,1720432663311,1068.33793131,0.00024481,2]
[331472357,1720433248340,1065.44743963,0.00024481,2]
[331472359,1720433279629,4309.26888189,0.0002448,2]
[331472363,1720433345048,526.17907697,0.00022381,2]
[331472364,1720433345790,-300.0,0.000255,2]
[331472365,1720433345910,-575.72862543,0.00025501,2]
[331472367,1720433345950,-875.72862543,0.00025501,2]
[331472368,1720433345991,-336.82797244,0.00025501,2]
[331472370,1720433349159,-160.595934,0.00025501,2]
[331472371,1720433351108,-20275.10880991,0.00025501,2]
[331472372,1720433352130,-13774.68738279,0.00025501,2]
[331472373,1720433352152,-3755.53030571,0.00025501,2]
[331472374,1720433352176,-3795.10726958,0.00026111,2]
[331472375,1720433353107,-1861.8901379,0.00026111,2]
[331472376,1720433367287,-500.0,0.00025868,30]
[331472377,1720433367308,-19243.00259252,0.00026111,2]
[331472378,1720433367327,-279.0634975,0.00026474,2]
[331472379,1720433367347,-495.37490406,0.00026748,2]
[331472380,1720433382132,1834.03142803,0.00025868,30]
[331472381,1720433402320,164.940385,0.00021096,2]
[331472548,1720433438000,-2480.66857197,0.00025868,30]
[331472549,1720433438011,-500.0,0.00025868,30]
[331472550,1720433438022,-506.93604909,0.00025868,30]
[331472551,1720433438032,-166.666666,0.00026599,2]
[331472552,1720433438043,-1065.44743963,0.00027194,2]
[331472553,1720433438053,-526.17907697,0.00027381,2]
[331472554,1720433438063,-157.6914181,0.00027512,2]
[331472555,1720433438073,-925.01,0.00028259,30]
[331472556,1720433438084,-500.0,0.00028259,30]
[331472557,1720433438095,-500.0,0.00028259,30]
[331472558,1720433438106,-500.0,0.00028259,30]
[331472559,1720433438117,-2082.46,0.00028259,30]
[331472560,1720433438128,-1304.09,0.00028259,30]
[331472561,1720433438137,-500.0,0.00028259,30]
[331472562,1720433438147,-500.0,0.00028259,30]
[331472563,1720433438157,-1119.23,0.00028259,30]
[331472564,1720433438167,-500.0,0.00028259,30]
[331472565,1720433438177,-500.0,0.00028259,30]
[331472566,1720433438186,-632.14,0.00028259,30]
[331472567,1720433438196,-500.0,0.00028259,30]
[331472568,1720433438205,-500.0,0.00028608,30]
[331472569,1720433438215,-4314.7,0.00028608,30]
[331472570,1720433438224,-564.60346803,0.00028608,30]
[331472571,1720433438234,-1000.0,0.00029,29]
[331472572,1720433438247,-386.51422723,0.00029673,30]
[331472573,1720433438257,-934.68,0.00029673,30]
[331472574,1720433438268,-186.04233168,0.00029712,2]
[331472575,1720433438278,-13434.5918832,0.00029782,3]
[331472576,1720433438287,-532.24050528,0.00029793,2]
[331472577,1720433438297,-13434.5918832,0.00029802,3]
[331472578,1720433438307,-256.72904767,0.00029803,2]
[331472579,1720433438317,-155.10844789,0.00029803,2]
[331472580,1720433438327,-1249.66,0.00029812,30]
[331472581,1720433438337,-238.77980863,0.00029812,30]
[331472582,1720433438347,-226.02081852,0.00029812,30]
[331472583,1720433438357,-13016.84,0.00029812,30]
[331472584,1720433438367,-500.0,0.00029812,30]
[331472585,1720433438377,-1433.56,0.00029812,30]
[331472586,1720433438466,-1653.07,0.00029812,30]
[331472587,1720433438477,-633.28004618,0.00029812,30]
[331472588,1720433438486,-500.0,0.00029812,30]
[331472589,1720433438503,-255.26140429,0.00029812,30]
[331472590,1720433438512,-235.56290883,0.00029812,30]
[331472591,1720433438523,-500.0,0.00029812,30]
[331472592,1720433438533,-156.72112003,0.00029813,2]
[331472593,1720433438545,-514.23803187,0.00029858,30]
[331472594,1720433438555,-515.85036784,0.00029858,30]
[331472595,1720433438565,-500.0,0.00029858,30]
[331472596,1720433438576,-513.33974616,0.00029858,30]
[331472597,1720433438586,-500.0,0.00029858,30]
[331472598,1720433438595,-516.01750948,0.00029858,30]
[331472599,1720433438606,-13434.5918832,0.00030003,4]
[331472600,1720433438616,-18616.78,0.00030063,3]
[331472601,1720433438627,-22340.13,0.00030073,3]
[331472602,1720433438637,-33510.19,0.00030083,3]
[331472603,1720433438649,-33510.19,0.00030093,3]
[331472604,1720433438659,-30000.0,0.00030103,2]
[331472605,1720433438670,-4118.64710273,0.0003019,2]
[331472606,1720433438680,-13434.5918832,0.0003029,4]
[331472607,1720433438690,-306.93445177,0.00030299,2]
[331472608,1720433438700,-587.59094293,0.00030299,2]
[331472609,1720433438710,-516.20342397,0.00030299,2]
[331472610,1720433438719,-500.0,0.000303,30]
[331472611,1720433438731,-590.87,0.000303,30]
[331472612,1720433438746,-500.0,0.000303,30]
[331472613,1720433438757,-558.35,0.000303,30]
[331472614,1720433438767,-521.32037622,0.000303,30]
[331472615,1720433438779,-501.55932347,0.000303,30]
[331472616,1720433438789,-500.0,0.000303,30]
[331472617,1720433438799,-513.9321426,0.000303,30]
[331472618,1720433438809,-500.0,0.000303,30]
[331472619,1720433438820,-500.0,0.000303,30]
[331472620,1720433438830,-509.06145503,0.000303,30]
[331472621,1720433438840,-509.14157313,0.000303,30]
[331472622,1720433438850,-500.0,0.000303,30]
[331472623,1720433438859,-500.0,0.000303,30]
[331472624,1720433438869,-507.83945506,0.000303,30]
[331472625,1720433438879,-889.99,0.000303,30]
[331472626,1720433438890,-522.75456289,0.000303,30]